[Event "Late-Titled-Tuesday-Blitz-September-12-2023"]
[Site "Chess.com"]
[Date "2023.09.12"]
[Round "3"]
[White "nevermind242"]
[Black "AlexNovitz"]
[Result "1/2-1/2"]
[WhiteElo "2357"]
[BlackElo "2181"]
[TimeControl "180+1"]
[EndTime "14:28:15 PDT"]
[Termination "Game drawn by agreement"]

1. Nf3 {[%clk 0:03:00.9]} 1... c5 {[%clk 0:02:57.5]} 2. g3 {[%clk 0:03:01]} 2...
Nc6 {[%clk 0:02:57.2]} 3. Bg2 {[%clk 0:03:01.3]} 3... g6 {[%clk 0:02:57.8]} 4.
c4 {[%clk 0:03:00.7]} 4... Bg7 {[%clk 0:02:57.8]} 5. Nc3 {[%clk 0:03:00.8]} 5...
e5 {[%clk 0:02:58.3]} 6. a3 {[%clk 0:02:54.9]} 6... a5 {[%clk 0:02:56.4]} 7. O-O
{[%clk 0:02:53.7]} 7... Nge7 {[%clk 0:02:56.2]} 8. Ne1 {[%clk 0:02:52.4]} 8...
d6 {[%clk 0:02:52.3]} 9. Nc2 {[%clk 0:02:52.2]} 9... Be6 {[%clk 0:02:53]} 10.
Ne3 {[%clk 0:02:52.1]} 10... O-O {[%clk 0:02:44.2]} 11. Ned5 {[%clk 0:02:52.2]}
11... Rb8 {[%clk 0:02:38.3]} 12. d3 {[%clk 0:02:48.4]} 12... h6 {[%clk
0:02:36.3]} 13. Qa4 {[%clk 0:02:43.3]} 13... Bxd5 {[%clk 0:02:21.2]} 14. Nxd5
{[%clk 0:02:42.5]} 14... Nd4 {[%clk 0:02:13.2]} 15. Re1 {[%clk 0:02:33.9]} 15...
b5 {[%clk 0:02:13.2]} 16. cxb5 {[%clk 0:02:28.1]} 16... Nxb5 {[%clk 0:02:13.9]}
17. Nxe7+ {[%clk 0:01:56.7]} 17... Qxe7 {[%clk 0:02:13.2]} 18. Qxa5 {[%clk
0:01:56]} 18... Nd4 {[%clk 0:02:10.8]} 19. Rb1 {[%clk 0:01:55.8]} 19... Nb3
{[%clk 0:02:03.1]} 20. Qa4 {[%clk 0:01:53.1]} 20... Qe6 {[%clk 0:01:38.5]} 21.
Qc4 {[%clk 0:01:44.4]} 21... Qxc4 {[%clk 0:01:23.2]} 22. dxc4 {[%clk 0:01:45.3]}
22... f5 {[%clk 0:01:20.6]} 23. Rd1 {[%clk 0:01:34.6]} 23... Nxc1 {[%clk
0:01:01.2]} 24. Rbxc1 {[%clk 0:01:31.1]} 24... Rxb2 {[%clk 0:00:59.3]} 25. Rxd6
{[%clk 0:01:31.4]} 25... e4 {[%clk 0:00:55.6]} 26. Rxg6 {[%clk 0:01:29.9]} 26...
Kh7 {[%clk 0:00:55.3]} 27. Rc6 {[%clk 0:01:29.7]} 27... Rxe2 {[%clk 0:00:52.3]}
28. Rxc5 {[%clk 0:01:26.6]} 28... Rxf2 {[%clk 0:00:44.4]} 29. Kxf2 {[%clk
0:01:26.1]} 29... Bd4+ {[%clk 0:00:43.7]} 30. Ke2 {[%clk 0:01:26.8]} 30... Bxc5
{[%clk 0:00:44.4]} 31. a4 {[%clk 0:01:19.5]} 31... Rb8 {[%clk 0:00:38.8]} 32.
Rd1 {[%clk 0:01:19]} 32... Rb4 {[%clk 0:00:30.9]} 33. Bh3 {[%clk 0:01:02.5]}
33... Kg6 {[%clk 0:00:27.7]} 34. Bxf5+ {[%clk 0:01:01.3]} 34... Kxf5 {[%clk
0:00:26.2]} 35. Rd5+ {[%clk 0:01:01.2]} 35... Kf6 {[%clk 0:00:22.8]} 36. Rxc5
{[%clk 0:01:01.3]} 36... Rxa4 {[%clk 0:00:21.2]} 37. Ke3 {[%clk 0:01:01.2]}
37... Ra2 {[%clk 0:00:19.2]} 38. Rh5 {[%clk 0:00:59.9]} 38... Kg6 {[%clk
0:00:18.4]} 39. Rh4 {[%clk 0:00:59.9]} 39... Rc2 {[%clk 0:00:10.3]} 40. Rxe4
{[%clk 0:00:51.8]} 40... Rxh2 {[%clk 0:00:09.7]} 41. Kd4 {[%clk 0:00:49.2]}
41... Rg2 {[%clk 0:00:09.1]} 42. Re3 {[%clk 0:00:47.9]} 42... Kf5 {[%clk
0:00:07]} 43. c5 {[%clk 0:00:48]} 43... Rc2 {[%clk 0:00:06.9]} 44. Rc3 {[%clk
0:00:47.2]} 44... Rd2+ {[%clk 0:00:06.9]} 45. Kc4 {[%clk 0:00:39.9]} 45... Ke6
{[%clk 0:00:07.1]} 46. Kb5 {[%clk 0:00:37.5]} 46... Kd7 {[%clk 0:00:07]} 47. c6+
{[%clk 0:00:34.5]} 47... Kc7 {[%clk 0:00:05.9]} 48. Kc5 {[%clk 0:00:24.3]} 48...
Rg2 {[%clk 0:00:05.2]} 49. Rf3 {[%clk 0:00:23.7]} 49... Rc2+ {[%clk 0:00:04.1]}
50. Kd5 {[%clk 0:00:24.1]} 50... Rd2+ {[%clk 0:00:04.5]} 51. Ke5 {[%clk
0:00:23.4]} 51... Kxc6 {[%clk 0:00:04.2]} 52. Rf6+ {[%clk 0:00:23.3]} 52... Kd7
{[%clk 0:00:04.8]} 53. Rxh6 {[%clk 0:00:23.7]} 53... Ke7 {[%clk 0:00:04.4]} 54.
Rh7+ {[%clk 0:00:18.2]} 54... Kf8 {[%clk 0:00:04.9]} 55. g4 {[%clk 0:00:13.2]}
55... Kg8 {[%clk 0:00:04.8]} 56. Ra7 {[%clk 0:00:10.4]} 56... Rd8 {[%clk
0:00:05.4]} 57. Kf6 {[%clk 0:00:10.4]} 57... Rb8 {[%clk 0:00:06]} 58. g5 {[%clk
0:00:09.6]} 58... Rc8 {[%clk 0:00:06.7]} 59. Kg6 {[%clk 0:00:09.8]} 59... Rb8
{[%clk 0:00:07.4]} 60. Kh6 {[%clk 0:00:10.3]} 60... Rc8 {[%clk 0:00:07.9]} 61.
Rg7+ {[%clk 0:00:09.8]} 61... Kh8 {[%clk 0:00:07.1]} 62. g6 {[%clk 0:00:09.6]}
62... Rd8 {[%clk 0:00:06.7]} 63. Rh7+ {[%clk 0:00:09.9]} 63... Kg8 {[%clk
0:00:07.3]} 64. Re7 {[%clk 0:00:10.1]} 64... Rc8 {[%clk 0:00:07]} 65. Kg5 {[%clk
0:00:10]} 65... Rb8 {[%clk 0:00:07.3]} 66. Kf6 {[%clk 0:00:10.5]} 66... Rc8
{[%clk 0:00:07.8]} 67. Rd7 {[%clk 0:00:11.1]} 67... Rb8 {[%clk 0:00:08.2]} 68.
Ke7 {[%clk 0:00:11.4]} 68... Ra8 {[%clk 0:00:07.9]} 69. Kf6 {[%clk 0:00:06.9]}
1/2-1/2

[Event "Late-Titled-Tuesday-Blitz-September-12-2023"]
[Site "Chess.com"]
[Date "2023.09.12"]
[Round "3"]
[White "Jenia84"]
[Black "lluiss"]
[Result "1-0"]
[WhiteElo "2365"]
[BlackElo "2169"]
[TimeControl "180+1"]
[EndTime "14:28:16 PDT"]
[Termination "Jenia84 won on time"]

1. e4 {[%clk 0:02:58.5]} 1... c5 {[%clk 0:02:58.9]} 2. Nf3 {[%clk 0:02:58]} 2...
d6 {[%clk 0:02:59.3]} 3. d4 {[%clk 0:02:58.1]} 3... cxd4 {[%clk 0:03:00.2]} 4.
Nxd4 {[%clk 0:02:58.5]} 4... Nf6 {[%clk 0:03:00.1]} 5. Nc3 {[%clk 0:02:58.5]}
5... g6 {[%clk 0:03:00.3]} 6. Be3 {[%clk 0:02:58.1]} 6... Bg7 {[%clk 0:03:00.9]}
7. Be2 {[%clk 0:02:58.5]} 7... O-O {[%clk 0:03:00.8]} 8. Qd2 {[%clk 0:02:59.1]}
8... Nc6 {[%clk 0:03:01.1]} 9. O-O-O {[%clk 0:02:56.9]} 9... Nxd4 {[%clk
0:02:59]} 10. Bxd4 {[%clk 0:02:55]} 10... Be6 {[%clk 0:02:59.6]} 11. Kb1 {[%clk
0:02:54.3]} 11... Qc7 {[%clk 0:02:53.2]} 12. f4 {[%clk 0:02:52.5]} 12... Rfd8
{[%clk 0:02:35.8]} 13. h3 {[%clk 0:02:51.8]} 13... Qa5 {[%clk 0:02:31.8]} 14.
Nd5 {[%clk 0:02:38]} 14... Qxd2 {[%clk 0:02:28.3]} 15. Nxf6+ {[%clk 0:02:37.9]}
15... Bxf6 {[%clk 0:02:27.5]} 16. Rxd2 {[%clk 0:02:38.5]} 16... Kg7 {[%clk
0:02:16.7]} 17. Rhd1 {[%clk 0:02:34]} 17... Rdc8 {[%clk 0:02:01.8]} 18. Bf3
{[%clk 0:02:17.7]} 18... Rc7 {[%clk 0:01:57.7]} 19. g4 {[%clk 0:02:09.5]} 19...
Bxd4 {[%clk 0:01:56.5]} 20. Rxd4 {[%clk 0:02:08.8]} 20... f6 {[%clk 0:01:56.6]}
21. b3 {[%clk 0:02:02.4]} 21... g5 {[%clk 0:01:55]} 22. fxg5 {[%clk 0:01:55]}
22... fxg5 {[%clk 0:01:55]} 23. e5 {[%clk 0:01:55]} 23... dxe5 {[%clk
0:01:43.5]} 24. Re4 {[%clk 0:01:47.6]} 24... Rc5 {[%clk 0:01:40.1]} 25. Rde1
{[%clk 0:01:41.6]} 25... Kf6 {[%clk 0:01:39.2]} 26. Rb4 {[%clk 0:01:34.4]} 26...
Rac8 {[%clk 0:01:32.5]} 27. Be4 {[%clk 0:01:29.2]} 27... b6 {[%clk 0:01:16.7]}
28. Re3 {[%clk 0:01:16.9]} 28... Kg7 {[%clk 0:01:12.1]} 29. Bd3 {[%clk
0:01:04.6]} 29... R8c7 {[%clk 0:01:09.1]} 30. Rbe4 {[%clk 0:01:01.5]} 30... Kf6
{[%clk 0:01:08]} 31. Rf3+ {[%clk 0:00:58.8]} 31... Kg7 {[%clk 0:01:07.8]} 32.
Re2 {[%clk 0:00:52.8]} 32... Rc3 {[%clk 0:00:42.8]} 33. Rxe5 {[%clk 0:00:48.9]}
33... Bf7 {[%clk 0:00:37.6]} 34. Rxg5+ {[%clk 0:00:47.1]} 34... Bg6 {[%clk
0:00:37.8]} 35. h4 {[%clk 0:00:39.5]} 35... Kh6 {[%clk 0:00:34.2]} 36. Re5
{[%clk 0:00:18.5]} 36... Kg7 {[%clk 0:00:20.2]} 37. Re2 {[%clk 0:00:14.3]} 37...
Bxd3 {[%clk 0:00:18.4]} 38. Rxd3 {[%clk 0:00:13.9]} 38... Rxd3 {[%clk
0:00:17.8]} 39. cxd3 {[%clk 0:00:14]} 39... Kf6 {[%clk 0:00:17.8]} 40. Kb2
{[%clk 0:00:12.9]} 40... Rc5 {[%clk 0:00:17.9]} 41. Rf2+ {[%clk 0:00:12.2]}
41... Kg6 {[%clk 0:00:17.5]} 42. Re2 {[%clk 0:00:12.2]} 42... Kf6 {[%clk
0:00:16.4]} 43. d4 {[%clk 0:00:12.4]} 43... Rc7 {[%clk 0:00:13.1]} 44. Re5
{[%clk 0:00:11.3]} 44... Rd7 {[%clk 0:00:11]} 45. Kc3 {[%clk 0:00:10.7]} 45...
Rc7+ {[%clk 0:00:11]} 46. Kd3 {[%clk 0:00:11]} 46... Rc1 {[%clk 0:00:11]} 47.
Rf5+ {[%clk 0:00:11.1]} 47... Kg6 {[%clk 0:00:10.6]} 48. Re5 {[%clk 0:00:11.4]}
48... Kf6 {[%clk 0:00:09.8]} 49. Re2 {[%clk 0:00:10.7]} 49... Rg1 {[%clk
0:00:08]} 50. Rf2+ {[%clk 0:00:10.5]} 50... Kg7 {[%clk 0:00:07.7]} 51. Rf4
{[%clk 0:00:10.5]} 51... Rh1 {[%clk 0:00:07.7]} 52. h5 {[%clk 0:00:10.2]} 52...
Rh3+ {[%clk 0:00:08.2]} 53. Ke4 {[%clk 0:00:10.4]} 53... Rh2 {[%clk 0:00:08.4]}
54. a4 {[%clk 0:00:10.4]} 54... Rb2 {[%clk 0:00:08.3]} 55. Ke5 {[%clk
0:00:10.4]} 55... Re2+ {[%clk 0:00:08.6]} 56. Kd5 {[%clk 0:00:09.9]} 56... Rb2
{[%clk 0:00:08.5]} 57. Re4 {[%clk 0:00:10]} 57... Rxb3 {[%clk 0:00:07.2]} 58.
Rxe7+ {[%clk 0:00:09.7]} 58... Kg8 {[%clk 0:00:07.6]} 59. Rxa7 {[%clk
0:00:09.7]} 59... Rg3 {[%clk 0:00:06.9]} 60. Rb7 {[%clk 0:00:08.7]} 60... Rxg4
{[%clk 0:00:07.1]} 61. Rxb6 {[%clk 0:00:09]} 61... Rg5+ {[%clk 0:00:07.5]} 62.
Kc4 {[%clk 0:00:09]} 62... Rxh5 {[%clk 0:00:08.4]} 63. Rb5 {[%clk 0:00:08.6]}
63... Rh1 {[%clk 0:00:07.7]} 64. a5 {[%clk 0:00:08.9]} 64... Ra1 {[%clk
0:00:07.3]} 65. Kc5 {[%clk 0:00:09.1]} 65... h5 {[%clk 0:00:07.5]} 66. Kb6
{[%clk 0:00:08.8]} 66... Kg7 {[%clk 0:00:06]} 67. Rxh5 {[%clk 0:00:08.2]} 67...
Rb1+ {[%clk 0:00:05.2]} 68. Rb5 {[%clk 0:00:08.2]} 68... Rd1 {[%clk 0:00:04.7]}
69. d5 {[%clk 0:00:09.1]} 1-0

[Event "Late-Titled-Tuesday-Blitz-September-12-2023"]
[Site "Chess.com"]
[Date "2023.09.12"]
[Round "3"]
[White "EnvigadoCity"]
[Black "jinxy2009"]
[Result "1-0"]
[WhiteElo "2026"]
[BlackElo "2317"]
[TimeControl "180+1"]
[EndTime "14:28:17 PDT"]
[Termination "EnvigadoCity won by resignation"]

1. d4 {[%clk 0:03:00.9]} 1... Nf6 {[%clk 0:02:55.7]} 2. c4 {[%clk 0:03:00.5]}
2... g6 {[%clk 0:02:55.2]} 3. Nc3 {[%clk 0:03:00.9]} 3... d5 {[%clk 0:02:55.1]}
4. Nf3 {[%clk 0:03:00.1]} 4... Bg7 {[%clk 0:02:55]} 5. h4 {[%clk 0:03:00.4]}
5... dxc4 {[%clk 0:02:42.5]} 6. e4 {[%clk 0:02:57.4]} 6... c5 {[%clk 0:02:41]}
7. d5 {[%clk 0:02:57.7]} 7... b5 {[%clk 0:02:40.8]} 8. h5 {[%clk 0:02:53.9]}
8... O-O {[%clk 0:02:40.2]} 9. hxg6 {[%clk 0:02:51.9]} 9... fxg6 {[%clk
0:02:41.1]} 10. e5 {[%clk 0:02:50.7]} 10... Ng4 {[%clk 0:02:39.2]} 11. e6 {[%clk
0:02:47.7]} 11... Bb7 {[%clk 0:01:45]} 12. Rxh7 {[%clk 0:02:31.3]} 12... Rf5
{[%clk 0:01:29.6]} 13. Rxg7+ {[%clk 0:02:17.4]} 13... Kxg7 {[%clk 0:01:28.8]}
14. Nh4 {[%clk 0:02:17.9]} 14... Re5+ {[%clk 0:01:15.6]} 15. Be2 {[%clk
0:02:17.5]} 15... b4 {[%clk 0:01:02.4]} 16. Qc2 {[%clk 0:02:06.2]} 16... Qe8
{[%clk 0:00:47.3]} 17. Kf1 {[%clk 0:02:06]} 17... Nf6 {[%clk 0:00:27.3]} 18. Bf4
{[%clk 0:02:01.5]} 18... Rxd5 {[%clk 0:00:12.7]} 19. Nxd5 {[%clk 0:01:56.6]}
19... Bxd5 {[%clk 0:00:13.1]} 20. Bxc4 {[%clk 0:01:52.7]} 20... Nc6 {[%clk
0:00:10.1]} 21. Bd3 {[%clk 0:01:47.9]} 21... Nd4 {[%clk 0:00:09.6]} 22. Qd2
{[%clk 0:01:47.9]} 22... Qc6 {[%clk 0:00:07.8]} 23. Bh6+ {[%clk 0:01:42]} 23...
Kg8 {[%clk 0:00:06.6]} 24. Nxg6 {[%clk 0:01:41.6]} 24... Bxg2+ {[%clk
0:00:06.4]} 25. Ke1 {[%clk 0:01:37.9]} 25... Nf3+ {[%clk 0:00:06.6]} 26. Kd1
{[%clk 0:01:38.2]} 26... Nxd2 {[%clk 0:00:07.5]} 27. Nxe7+ {[%clk 0:01:37.6]}
27... Kh8 {[%clk 0:00:06.5]} 28. Nxc6 {[%clk 0:01:38.5]} 28... Bxc6 {[%clk
0:00:04.8]} 29. Kxd2 {[%clk 0:01:38.6]} 29... Rd8 {[%clk 0:00:04.5]} 30. Ke2
{[%clk 0:01:36.1]} 30... Be4 {[%clk 0:00:03.1]} 31. Bxe4 {[%clk 0:01:27.4]}
31... Nxe4 {[%clk 0:00:04]} 32. Rd1 {[%clk 0:00:44.6]} 32... Re8 {[%clk
0:00:04.1]} 33. f3 {[%clk 0:00:20.4]} 33... Rxe6 {[%clk 0:00:04.8]} 34. fxe4
{[%clk 0:00:19.4]} 34... Rxh6 {[%clk 0:00:04.9]} 35. Rd2 {[%clk 0:00:13.5]}
35... Rh2+ {[%clk 0:00:04.3]} 36. Ke3 {[%clk 0:00:14.2]} 36... Rh3+ {[%clk
0:00:04.2]} 37. Kf4 {[%clk 0:00:13.6]} 37... Kg7 {[%clk 0:00:05.1]} 38. Rd7+
{[%clk 0:00:11.2]} 38... Kf6 {[%clk 0:00:05.7]} 39. Rd6+ {[%clk 0:00:11.4]}
39... Ke7 {[%clk 0:00:05.6]} 40. Ra6 {[%clk 0:00:12]} 40... Rh2 {[%clk
0:00:05.9]} 41. Rxa7+ {[%clk 0:00:11.4]} 41... Ke6 {[%clk 0:00:06.5]} 42. Ra6+
{[%clk 0:00:10.6]} 42... Ke7 {[%clk 0:00:06.9]} 43. b3 {[%clk 0:00:10.8]} 43...
Rf2+ {[%clk 0:00:06]} 44. Ke5 {[%clk 0:00:10.6]} 44... Re2 {[%clk 0:00:06.3]}
45. Ra7+ {[%clk 0:00:10.6]} 45... Ke8 {[%clk 0:00:06.3]} 46. Kd5 {[%clk
0:00:09.6]} 46... Kd8 {[%clk 0:00:05.7]} 47. e5 {[%clk 0:00:09]} 47... Ke8
{[%clk 0:00:06.2]} 48. Ke6 {[%clk 0:00:08.7]} 48... Kd8 {[%clk 0:00:05.9]} 49.
Ra8+ {[%clk 0:00:08.5]} 49... Kc7 {[%clk 0:00:06.2]} 50. Kf6 {[%clk 0:00:08.3]}
50... Kd7 {[%clk 0:00:06]} 51. Ra7+ {[%clk 0:00:07.7]} 51... Ke8 {[%clk
0:00:05.8]} 52. Ke6 {[%clk 0:00:06.2]} 52... Kd8 {[%clk 0:00:05.9]} 53. Kd6
{[%clk 0:00:05.9]} 53... Ke8 {[%clk 0:00:05.8]} 54. e6 {[%clk 0:00:06]} 54...
Rd2+ {[%clk 0:00:05.6]} 55. Kxc5 {[%clk 0:00:06.5]} 55... Re2 {[%clk 0:00:06.1]}
56. e7 {[%clk 0:00:06.1]} 56... Kf7 {[%clk 0:00:05.3]} 57. Kxb4 {[%clk
0:00:02.1]} 57... Re4+ {[%clk 0:00:05.5]} 58. Kc3 {[%clk 0:00:01.9]} 58... Re3+
{[%clk 0:00:05.7]} 59. Kb2 {[%clk 0:00:02.8]} 59... Rxe7 {[%clk 0:00:06.4]} 60.
Rxe7+ {[%clk 0:00:02.1]} 60... Kxe7 {[%clk 0:00:07.3]} 61. b4 {[%clk 0:00:01.4]}
61... Kd7 {[%clk 0:00:08.2]} 62. Kb3 {[%clk 0:00:02.2]} 62... Kc7 {[%clk
0:00:09.1]} 63. a3 {[%clk 0:00:03]} 63... Kb7 {[%clk 0:00:10]} 64. a4 {[%clk
0:00:03.9]} 64... Kb6 {[%clk 0:00:10.9]} 65. b5 {[%clk 0:00:04.3]} 65... Ka7
{[%clk 0:00:11.8]} 66. Kc4 {[%clk 0:00:05]} 66... Kb7 {[%clk 0:00:12.7]} 67. Kc5
{[%clk 0:00:05.2]} 67... Kc7 {[%clk 0:00:13.6]} 68. a5 {[%clk 0:00:05.6]} 68...
Kb8 {[%clk 0:00:14.5]} 69. a6 {[%clk 0:00:06.5]} 69... Ka7 {[%clk 0:00:14.7]}
70. Kc6 {[%clk 0:00:06.3]} 70... Ka8 {[%clk 0:00:15.6]} 71. b6 {[%clk
0:00:06.9]} 71... Kb8 {[%clk 0:00:16.5]} 72. b7 {[%clk 0:00:07.3]} 72... Ka7
{[%clk 0:00:14.9]} 73. Kc7 {[%clk 0:00:07.5]} 73... Kxa6 {[%clk 0:00:15.7]} 74.
b8=Q {[%clk 0:00:08.1]} 1-0

[Event "Late-Titled-Tuesday-Blitz-September-12-2023"]
[Site "Chess.com"]
[Date "2023.09.12"]
[Round "3"]
[White "Bilan_Danila"]
[Black "jcmesafischer"]
[Result "1-0"]
[WhiteElo "2563"]
[BlackElo "2371"]
[TimeControl "180+1"]
[EndTime "14:28:20 PDT"]
[Termination "Bilan_Danila won by resignation"]

1. d4 {[%clk 0:03:00.9]} 1... Nf6 {[%clk 0:02:59.6]} 2. Nf3 {[%clk 0:03:00.1]}
2... e6 {[%clk 0:02:52.9]} 3. g3 {[%clk 0:02:58.6]} 3... Be7 {[%clk 0:02:53]} 4.
Bg2 {[%clk 0:02:58.6]} 4... O-O {[%clk 0:02:52.8]} 5. O-O {[%clk 0:02:58.4]}
5... d5 {[%clk 0:02:53.1]} 6. c4 {[%clk 0:02:58.3]} 6... dxc4 {[%clk 0:02:54]}
7. Qa4 {[%clk 0:02:57.9]} 7... a6 {[%clk 0:02:53.3]} 8. Qxc4 {[%clk 0:02:58.4]}
8... b5 {[%clk 0:02:53.6]} 9. Qc2 {[%clk 0:02:59]} 9... Bb7 {[%clk 0:02:49.7]}
10. Bf4 {[%clk 0:02:58.7]} 10... Be4 {[%clk 0:02:39.2]} 11. Qxc7 {[%clk
0:02:51.9]} 11... Qxc7 {[%clk 0:02:29.8]} 12. Bxc7 {[%clk 0:02:52.8]} 12... Nc6
{[%clk 0:02:20]} 13. Nc3 {[%clk 0:02:23.7]} 13... Rac8 {[%clk 0:02:04.9]} 14.
Nxe4 {[%clk 0:02:21.6]} 14... Rxc7 {[%clk 0:01:53.2]} 15. Nxf6+ {[%clk
0:02:16.2]} 15... Bxf6 {[%clk 0:01:54.1]} 16. Rac1 {[%clk 0:02:03.1]} 16... Rfc8
{[%clk 0:01:52.8]} 17. Rcd1 {[%clk 0:01:32.7]} 17... Na5 {[%clk 0:01:10.6]} 18.
Bh3 {[%clk 0:01:00.9]} 18... Rd8 {[%clk 0:00:46.2]} 19. Rc1 {[%clk 0:00:56.6]}
19... Rdc8 {[%clk 0:00:40.5]} 20. Rcd1 {[%clk 0:00:28.1]} 20... Rd8 {[%clk
0:00:37]} 21. e3 {[%clk 0:00:27.8]} 21... Rc2 {[%clk 0:00:34.5]} 22. Rd2 {[%clk
0:00:27.9]} 22... Rdc8 {[%clk 0:00:27.7]} 23. Rfd1 {[%clk 0:00:20.2]} 23... R8c7
{[%clk 0:00:19.2]} 24. Bf1 {[%clk 0:00:11.3]} 24... Kf8 {[%clk 0:00:16]} 25. Bd3
{[%clk 0:00:11.4]} 25... Rc1 {[%clk 0:00:15.5]} 26. Kg2 {[%clk 0:00:10]} 26...
Ke7 {[%clk 0:00:12]} 27. Rxc1 {[%clk 0:00:06.2]} 27... Rxc1 {[%clk 0:00:12.9]}
28. Rc2 {[%clk 0:00:06.8]} 28... Rd1 {[%clk 0:00:12.7]} 29. Be2 {[%clk
0:00:06.7]} 29... Rb1 {[%clk 0:00:11.5]} 30. a3 {[%clk 0:00:06.7]} 30... Kd7
{[%clk 0:00:09]} 31. Nd2 {[%clk 0:00:07.2]} 31... Ra1 {[%clk 0:00:07.8]} 32. Ne4
{[%clk 0:00:07.4]} 32... Be7 {[%clk 0:00:07.5]} 33. h4 {[%clk 0:00:06.5]} 33...
f5 {[%clk 0:00:06.7]} 34. Nc5+ {[%clk 0:00:05.2]} 34... Bxc5 {[%clk 0:00:06.4]}
35. dxc5 {[%clk 0:00:06.1]} 35... Kc6 {[%clk 0:00:03.4]} 36. Bf3+ {[%clk
0:00:06.5]} 36... Kc7 {[%clk 0:00:03.4]} 37. Be2 {[%clk 0:00:06.9]} 37... Nb3
{[%clk 0:00:03.3]} 38. Bd3 {[%clk 0:00:05.7]} 38... Nc1 {[%clk 0:00:02.5]} 39.
Be2 {[%clk 0:00:03.2]} 39... Nb3 {[%clk 0:00:02.9]} 40. Bf3 {[%clk 0:00:03.3]}
40... a5 {[%clk 0:00:03]} 41. e4 {[%clk 0:00:03.7]} 41... a4 {[%clk 0:00:02.7]}
42. exf5 {[%clk 0:00:04.1]} 42... exf5 {[%clk 0:00:03.6]} 43. Re2 {[%clk
0:00:04.2]} 43... Nxc5 {[%clk 0:00:02.6]} 44. Re7+ {[%clk 0:00:04.6]} 44... Kd6
{[%clk 0:00:03.1]} 45. Rxg7 {[%clk 0:00:04.9]} 45... Nd3 {[%clk 0:00:03.9]} 46.
Bb7 {[%clk 0:00:03.3]} 46... Nxb2 {[%clk 0:00:03.9]} 47. Rxh7 {[%clk 0:00:03.3]}
47... Rxa3 {[%clk 0:00:03.9]} 48. Rh6+ {[%clk 0:00:03.8]} 48... Kc5 {[%clk
0:00:03.9]} 49. Rc6+ {[%clk 0:00:03.2]} 49... Kb4 {[%clk 0:00:04.4]} 50. h5
{[%clk 0:00:03.5]} 50... Rd3 {[%clk 0:00:03.5]} 51. h6 {[%clk 0:00:03.5]} 51...
Rd7 {[%clk 0:00:03.7]} 52. Bc8 {[%clk 0:00:03]} 52... Rh7 {[%clk 0:00:03.1]} 53.
Bxf5 {[%clk 0:00:03.7]} 53... Rh8 {[%clk 0:00:02.8]} 54. h7 {[%clk 0:00:04.2]}
54... a3 {[%clk 0:00:03.2]} 55. Rc8 {[%clk 0:00:04.6]} 55... Rxc8 {[%clk
0:00:01.6]} 56. Bxc8 {[%clk 0:00:03.8]} 56... a2 {[%clk 0:00:02.5]} 57. h8=Q
{[%clk 0:00:03.9]} 57... a1=Q {[%clk 0:00:03.4]} 58. Qd4+ {[%clk 0:00:04.1]}
58... Ka5 {[%clk 0:00:02.1]} 59. Qa7+ {[%clk 0:00:03.9]} 59... Kb4 {[%clk
0:00:02.6]} 60. Qxa1 {[%clk 0:00:04.8]} 60... Nc4 {[%clk 0:00:03.4]} 61. Qb1+
{[%clk 0:00:05.6]} 61... Kc5 {[%clk 0:00:04.3]} 62. Be6 {[%clk 0:00:06]} 62...
b4 {[%clk 0:00:05.2]} 63. Qc2 {[%clk 0:00:05.6]} 1-0